Workbook

Sheet ПЛАН
A5: Отм. | B5: Наименование изделия | C5: Обозначения изделия | D5: Наименование детали | E5: Обозначение детали | F5: Количество | G5: Время обработки | H5: Станок | I5: Примечания
B6: Амортизатор | C6: 101-2905006 | F6: 1420
D7: Корпус | E7: АМОП.50.А1.452995.312-070 | F7: =F6+F9+F137+F131+F177+F199+F140 -> 53470 | G7: 1.73 | H7: FC-TF(корп)
D8: Шток | E8: 101-2905482-20 | F8: =F6+F9 -> 9240 | G8: 4.88 | H8: FC-TF(шток)
B9: Амортизатор | C9: 101-2905006-01 | F9: 7820
D10: Корпус | E10: АМОП.50.А1.452995.312-070
D11: Шток | E11: 101-2905482-20
B12: Амортизатор | C12: 103Т-2905006 | F12: 1640
D13: Корпус | E13: 103Т-2905312-10 | F13: =F12 -> 1640 | G13: 2.11 | H13: FC-TF(корп)
D14: Шток | E14: 103Т-2905482 | F14: =F12 -> 1640 | G14: 4.774 | H14: FC-TF(шток) | I14: Время сверено с ТП
B15: Амортизатор | C15: 103Т-2905006-10 | F15: 0
D16: Корпус | E16: 103Т-2905312-12 | F16: =F15 -> 0 | G16: 2.11 | H16: FC-TF(корп)
D17: Шток | E17: 103Т-2905482-10 | F17: =F15 -> 0 | G17: 4.774 | H17: FC-TF(шток) | I17: Время сверено с ТП
B18: Амортизатор | C18: 205068-2905006 | F18: 2100
D19: Корпус | E19: 205-2905312-10 | F19: =F18 -> 2100 | G19: 2.11 | H19: FC-TF(корп)
D20: Шток | E20: 205-2905482 | F20: =F18 -> 2100 | G20: 4.774 | H20: FC-TF(шток) | I20: Время сверено с ТП
B21: Амортизатор | C21: 26Т.081.02.000 | F21: 4000
D22: Корпус ам. | E22: 26Т.081.02.312-10 | F22: =F21 -> 4000 | G22: 2.72 | H22: FC-TF(корп)
D23: Шток | E23: 26Т.081.02.482 | F23: =F21 -> 4000 | G23: 6.664 | H23: FC-TF(шток) | I23: Приравнял к 26Т.081.02.482-01
B24: Амортизатор | C24: 40.АМОП.275/455.2915006 | F24: 1270
D25: Корпус | E25: 40.А1-275/460.312 | F25: =F24+F34 -> 18190 | G25: 1.61 | H25: FC-TF(корп)
D26: Шток | E26: 40.АМОП.452995.356-021 | F26: =F24+F34 -> 18190 | G26: 2.922 | H26: FC-TF(шток)
D27: Цилиндр | E27: 40.А1-275/460.318 | F27: =F24+F34 -> 18190 | G27: 0.474 | H27: FC-TF(корп)
D28: Головка | E28: А1-300/480.443 | F28: =F24*2+F209+F29*2 -> 5570 | G28: 3 | H28: FC-TF(один)
B29: Амортизатор | C29: 40.АМОП.300/480.2905006 | F29: 1490
D30: Корпус ам. | E30: АМОП.40.А1.452995.312-027 | F30: =F29+F155 -> 11600 | G30: 1.61 | H30: FC-TF(корп)
D31: Шток | E31: АМОП.40.452995.356-027 | F31: =F29+F155 -> 11600 | G31: 2.922 | H31: FC-TF(шток) | I31: Время сверено с ТП
D32: Цилиндр ам. | E32: АМОП.40.А1.452995.318-027 | F32: =F29+F155 -> 11600 | G32: 0.474 | H32: FC-TF(корп)
D33: Головка | E33: А1-300/480.443
B34: Амортизатор | C34: 40.АМОП.452995.021 | F34: 16920
D35: Корпус | E35: 40.А1-275/460.312
D36: Шток | E36: 40.АМОП.452995.356-021
D37: Цилиндр | E37: 40.А1-275/460.318
B38: Амортизатор | C38: 54327-2915006 | F38: 120
D39: Корпус | E39: 54327-2915312-05
D40: Шток | E40: 54327-2915356-51 | F40: =F38 -> 120 | G40: 2.25 | H40: FC-TF(шток)
D41: Цилиндр | E41: 15.2905318-01
B42: Амортизатор | C42: 54327-2915006-06 | F42: 0
D43: Корпус | E43: 54327-2915312-55
D44: Шток | E44: 54327-2915356-60
B45: Амортизатор | C45: 54327-2915006-10 | F45: 520
D46: Корпус | E46: 54327-2915312-15
D47: Шток | E47: 54327-2915356-61 | F47: =F45 -> 520 | G47: 2.72 | H47: FC-TF(шток)
D48: Цилиндр | E48: 15.2905318-11
B49: Амортизатор | C49: 54327-2915006-20 | F49: 3300
D50: Корпус | E50: 54327-2915312-25 | F50: =ТЕСТ+ТЕСТ2+ТЕСТ3+Тест4+F111+F53 -> 79270 | G50: 1.73 | H50: FC-TF(корп)
D51: Шток | E51: 54327-2915356-71 | F51: =F49+F193+F53 -> 18300 | G51: 2.72 | H51: FC-TF(шток)
D52: Цилиндр | E52: 15.2905318-21 | F52: =F49+F88+F107+F193+F111+F53+F92 -> 79270 | G52: 0.474 | H52: FC-TF(корп)
B53: Амортизатор | C53: 54327-2915006-21 | F53: 0
D54: Корпус | E54: 54327-2915312-25
D55: Шток | E55: 54327-2915356-71
D56: Цилиндр | E56: 15.2905318-21
B57: Амортизатор | C57: 54327-2915006-30 | F57: 1540
D58: Корпус | E58: 54327-2915312-35 | F58: =F57+F96+F100 -> 2320 | G58: 1.73 | H58: FC-TF(корп)
D59: Шток | E59: 54327-2915356-81 | F59: =F57 -> 1540 | G59: 2.72 | H59: FC-TF(шток)
D60: Цилиндр | E60: 15.2905318-31 | F60: =F57+F96 -> 1810 | G60: 0.474 | H60: FC-TF(корп)
B61: Амортизатор | C61: 54327-2915006-50 | F61: 3450
D62: Корпус | E62: 54327-2915312-55 | F62: =F61+F64+F85+F42+F67 -> 7060 | G62: 1.73 | H62: FC-TF(корп)
D63: Шток | E63: 54327-2915356-91 | F63: =F61 -> 3450 | G63: 2.72 | H63: FC-TF(шток)
B64: Амортизатор | C64: 54327-2915006-60 | F64: 3150
D65: Корпус | E65: 54327-2915312-55
D66: Шток | E66: 54327-2915356-60 | F66: =F64+F85+F42 -> 3610 | G66: 2.72 | H66: FC-TF(шток)
B67: Амортизатор | C67: А1.50-245/432.000 | F67: 0
D68: Корпус | E68: 54327-2915312-55
D69: Шток | E69: А1.50-245/432.356 | F69: =F67 -> 0 | G69: 2.86 | H69: FC-TF(шток)
B70: Амортизатор | C70: А1-130/300.000-10 | F70: 0
D71: Шток | E71: А1-130/300.356 | F71: =F70 -> 0 | G71: 6.664 | H71: FC-TF(шток) | I71: Приравнял к 26Т.081.02.482
D72: Корпус | E72: А1-130/300.312-20 | F72: =F70 -> 0 | G72: 2.02 | H72: FC-TF(корп)
B73: Амортизатор | C73: А1-160/330.001-10 | F73: 0
D74: Шток | E74: А1-160/330.356 | F74: =F73 -> 0 | G74: 6.664 | H74: FC-TF(шток) | I74: Приравнял к 26Т.081.02.482
D75: Корпус | E75: А1-160/330.312-20 | F75: =F73 -> 0 | G75: 2.02 | H75: FC-TF(корп)
B76: Амортизатор | C76: А1-175/375.000 | F76: 90
D77: Корпус | E77: А1-175/375.312-20 | F77: =F76+F79 -> 140 | G77: 2.02 | H77: FC-TF(корп)
D78: Шток | E78: А1-175/375.356 | F78: =F76 -> 90 | G78: 2.69 | H78: FC-TF(шток) | I78: Приравнял к А1-175/375.356-01
B79: Амортизатор | C79: А1-200/375.000 | F79: 50
D80: Корпус | E80: А1-175/375.312-20
D81: Шток | E81: А1-200/375.356 | F81: =F79 -> 50 | G81: 2.69 | H81: FC-TF(шток)
B82: Амортизатор | C82: А1-200/385.000 | F82: 0
D83: Корпус | E83: А1-200/385.312-20 | F83: =F82 -> 0 | G83: 2.02 | H83: FC-TF(корп)
D84: Шток | E84: А1-200/385.356 | F84: =F82 -> 0 | G84: 2.69 | H84: FC-TF(шток)
B85: Амортизатор | C85: А1-237/412.2905006-01 | F85: 460
D86: Корпус | E86: 54327-2915312-55
D87: Шток | E87: 54327-2915356-60
B88: Амортизатор | C88: А1-255/475.2905006 | F88: 8100
D89: Корпус | E89: 54327-2915312-25
D90: Шток | E90: А1-255/475.356 | F90: =F88+F92 -> 8100 | G90: 2.25 | H90: FC-TF(шток)
D91: Цилиндр | E91: 15.2905318-21
B92: Амортизатор | C92: А1-260/437.2905006-01 | F92: 0
D93: Корпус | E93: 15.2905312-55 | F93: =F92 -> 0 | G93: 1.73 | H93: FC-TF(корп)
D94: Шток | E94: А1-255/475.356
D95: Цилиндр | E95: 15.2905318-21
B96: Амортизатор | C96: А1-275/450.2905006 | F96: 270
D97: Корпус | E97: 54327-2915312-35
D98: Шток | E98: А1-275/450.356-10
D99: Цилиндр | E99: 15.2905318-31
B100: Амортизатор | C100: А1-275/450.2905006-01 | F100: 510
D101: Шток | E101: А1-275/450.356-10
D102: Корпус | E102: 54327-2915312-35
B103: Амортизатор | C103: А1-275/460.2905006-01 | F103: 620
D104: Корпус | E104: 22.2905312-05 | F104: =F103+F207 -> 670 | G104: 1.73 | H104: FC-TF(корп)
D105: Шток | E105: А1-275/450.356-10 | F105: =F103+F96+F100 -> 1400 | G105: 2.823 | H105: FC-TF(шток) | I105: Время сверено с ТП
D106: Цилиндр | E106: 22.2905318 | F106: =F103+F207 -> 670 | G106: 0.474 | H106: FC-TF(корп)
B107: Амортизатор | C107: А1-300/475.2905006 | F107: =45000+2320+1400 -> 48720
D108: Корпус | E108: 54327-2915312-25
D109: Шток | E109: А1-300/475.356-10 | F109: =F107+F111 -> 52870 | G109: 2.69 | H109: FC-TF(шток) | I109: Приравнял к А1-300/475.356-11
D110: Цилиндр | E110: 15.2905318-21
B111: Амортизатор | C111: А1-300/475.2905006-01 | F111: 4150
D112: Корпус | E112: 54327-2915312-25
D113: Шток | E113: А1-300/475.356-10
D114: Цилиндр | E114: 15.2905318-21
B115: Амортизатор | C115: А1-325/500.2905006 | F115: =3230+1000+240 -> 4470
D116: Корпус | E116: 54327-2915312-15 | F116: =F115+F119+F45+F67 -> 25940 | G116: 1.73 | H116: FC-TF(корп)
D117: Шток | E117: A1-325/500.356-10 | F117: =F115+F119 -> 25420 | G117: 2.823 | H117: FC-TF(шток) | I117: Время сверено с ТП
D118: Цилиндр | E118: 15.2905318-11 | F118: =F115+F119+F45 -> 25940 | G118: 0.474 | H118: FC-TF(корп)
B119: Амортизатор | C119: А1-325/500.2905006-01 | F119: 20950
D120: Корпус | E120: 54327-2915312-15
D121: Шток | E121: A1-325/500.356-10
D122: Цилиндр | E122: 15.2905318-11
B123: Амортизатор | C123: А1-350/525.2905006 | F123: =1200+4620 -> 5820
D124: Корпус | E124: 54327-2915312-05 | F124: =F123+F38+F127+F149 -> 6020 | G124: 1.73 | H124: FC-TF(корп)
D125: Шток | E125: A1-350/525.356-10 | F125: =F123+F127+F149 -> 5900 | G125: 2.823 | H125: FC-TF(шток)
D126: Цилиндр | E126: 15.2905318-01 | F126: =F123+F38+F127 -> 6020 | G126: 0.474 | H126: FC-TF(корп)
B127: Амортизатор | C127: А1-350/525.2905006-01 | F127: 80
D128: Корпус | E128: 54327-2915312-05
D129: Шток | E129: A1-350/525.356-10
D130: Цилиндр | E130: 15.2905318-01
B131: Амортизатор | C131: А2-230/450.2905006 | F131: 3210
D132: Корпус | E132: АМОП.50.А1.452995.312-070
D133: Шток | E133: А2-230/450.482-21 | F133: =F131 -> 3210 | G133: 4.88 | H133: FC-TF(шток) | I133: Время сверено с ТП. ТП актуальный 26.07.21
B134: Амортизатор | C134: А2-235/420.000 | F134: 0
D135: Корпус | E135: 15.2905312-45 | F135: =F134 -> 0 | G135: 2.02 | H135: FC-TF(корп)
D136: Шток | E136: А2-245/450.482 | F136: =F134 -> 0 | G136: 4.35 | H136: FC-TF(шток)
B137: Амортизатор | C137: А2-245/450.2905006 | F137: 0
D138: Корпус | E138: АМОП.50.А1.452995.312-070
D139: Шток | E139: А2-245/450.482-21 | F139: =F137+F140 -> 1320 | G139: 4.88 | H139: FC-TF(шток) | I139: Время сверено с ТП. ТП актуальный 26.07.21
B140: Амортизатор | C140: А2-245/450.2905006-01 | F140: 1320
D141: Корпус | E141: АМОП.50.А1.452995.312-070
D142: Шток | E142: А2-245/450.482-21
B143: Амортизатор | C143: А3.40-245/379.000 | F143: 0
D144: Корпус | E144: А3.40-245/379.312 | F144: =F143 -> 0 | G144: 1.94 | H144: FC-TF(корп)
D145: Шток | E145: А3.40-245/379.482 | F145: =F143 -> 0 | G145: 3.32 | H145: FC-TF(шток)
B146: Амортизатор | C146: А3.40-295/434.000 | F146: 0 | I146: Нет времени на штоке
D147: Корпус | E147: А3.40-295/434.312 | F147: =F146 -> 0 | G147: 1.61 | H147: FC-TF(корп)
D148: Шток | E148: А3.40-295/434.482 | F148: =F146 -> 0 | H148: FC-TF(шток) | I148: Нет времени
B149: Амортизатор | C149: АС1-350/525.2905006 | F149: 0
D150: Шток | E150: A1-350/525.356-10
D151: Корпус | E151: 54327-2915312-05
B152: Амортизатор | C152: ТЕ1-10А-2905006 | F152: 1750
D153: Корпус | E153: ТЕ1-10А-2905312-12 | F153: =F152 -> 1750 | G153: 2.72 | H153: FC-TF(корп)
D154: Шток | E154: ТЕ1-10А-2905356-10 | F154: =F152 -> 1750 | G154: 3.378 | H154: FC-TF(шток) | I154: Время сверено с ТП
B155: Амортизатор | C155: АМОП.40.А1.452995.027 | F155: =5000+5000+110 -> 10110
D156: Корпус ам. | E156: АМОП.40.А1.452995.312-027
D157: Шток | E157: 40.АМОП.452995.356-027
D158: Цилиндр ам. | E158: АМОП.40.А1.452995.318-027
B159: Амортизатор | C159: АМОП.40.А1.452995.074 | F159: 80 | I159: Нет ТП на корпус!?
D160: Шток | E160: АМОП.40.А1.452995.356-074 | F160: =F159 -> 80 | G160: 2.922 | H160: FC-TF(шток) | I160: Приравнял к АМОП.40.452995.356-027
D161: Корпус | E161: АМОП.40.А1.452995.312-064 | I161: Нет в ТП
B162: Амортизатор | C162: АМОП.40.А1.452995.083 | F162: 0
D163: Корпус | E163: АМОП.40.А1.452995.312-064 | F163: =F162+F160 -> 80 | G163: 1.61 | H163: FC-TF(корп)
D164: Шток | E164: АМОП.40.А1.452995.356-083 | F164: =F163 -> 80 | G164: 2.71 | H164: FC-TF(шток)
B165: Амортизатор | C165: АМОП.40.А1.452995.100 | F165: 1500
D166: Корпус | E166: АМОП.40.А1.452915.312-063 | F166: =F165 -> 1500 | G166: 1.61 | H166: FC-TF(корп)
D167: Шток | E167: АМОП.40.А1.452995.356-100 | F167: =F165 -> 1500 | G167: 3.32 | H167: FC-TF(шток)
D168: Цилиндр | E168: АМОП.40.А1.452915.318-063 | F168: =F165 -> 1500 | G168: 0.474 | H168: FC-TF(корп)
B169: Амортизатор | C169: АМОП.40.А2.452915.053 | F169: =1420+6500 -> 7920
D170: Корпус | E170: АМОП.40.А2.452915.312-053 | F170: =F169 -> 7920 | G170: 1.942 | H170: FC-TF(корп)
D171: Шток | E171: АМОП.40.А2.452915.482-053 | F171: =F169 -> 7920 | G171: 3.32 | H171: FC-TF(шток) | I171: Время сверено с ТП
B172: Амортизатор | C172: АМОП.40.А2.452915.107 | F172: 1900
D173: Корпус | E173: АМОП.40.А2.452915.312-107 | F173: =F172 -> 1900 | G173: 1.61 | H173: FC-TF(корп)
D174: Шток | E174: АМОП.40.А2.452915.482-107 | F174: =F172 -> 1900 | G174: 4.35 | H174: FC-TF(шток)
B175: Амортизатор | C175: АМОП.452995.003 | F175: 0 | I175: нет инф.
B177: Амортизатор | C177: АМОП.452995.004 | F177: 15060
D178: Корпус | E178: АМОП.50.А1.452995.312-070
D179: Шток | E179: АМОП.452995.482-004-03 | F179: =F177 -> 15060 | G179: 3.43 | H179: FC-TF(шток)
B180: Амортизатор | C180: АМОП.452995.020 | F180: 6520
D181: Корпус | E181: АМОП.452995.312-020 | F181: =F180 -> 6520
D182: Шток | E182: АМОП.452995.482-020 | F182: =F180 -> 6520 | G182: 4.35 | H182: FC-TF(шток) | I182: Время сверено с ТП
B183: Амортизатор | C183: АМОП.50.А1.452995.031 | F183: 0
D184: Корпус | E184: АМОП.50.А1.452995.312-031 | F184: =F183 -> 0 | G184: 2.02 | H184: FC-TF(корп)
D185: Шток | E185: А1-150/325.356 | F185: =F183 -> 0 | G185: 2.69 | H185: FC-TF(шток) | I185: Приравнял к А1-150/325.356-01
B186: Амортизатор | C186: АМОП.50.А1.452995.032 | F186: 600
D187: Корпус | E187: А1-180/350.312-20 | F187: =F186 -> 600 | G187: 2.02 | H187: FC-TF(корп)
D188: Шток | E188: А1-180/350.356 | F188: =F186 -> 600 | G188: 2.69 | H188: FC-TF(шток) | I188: Приравнял к А1-180/350.356-01
B189: Амортизатор | C189: АМОП.50.А1.452995.035 | F189: 0
D190: Корпус | E190: АМОП.50.А1.452995.312-034 | F190: =F189 -> 0 | G190: 2.02 | H190: FC-TF(корп) | I190: Нет в ТП; приравнял к Корпусу АМОП.50.А2.452995.312-106
D191: Шток | E191: АМОП.50.А1.452995.356-034 | F191: =F190 -> 0 | G191: 2.75 | H191: FC-TF(шток)
B193: Амортизатор | C193: АМОП.50.А1.452995.038 | F193: 15000
D194: Корпус | E194: 54327-2915312-25
D195: Шток | E195: 54327-2915356-71
D196: Цилиндр | E196: 15.2905318-21
B197: Амортизатор | C197: АМОП.50.А1.452995.069 | F197: 120 | I197: нет инф.
B199: Амортизатор | C199: АМОП.50.А1.452995.070 | F199: 24640
D200: Корпус | E200: АМОП.50.А1.452995.312-070
D201: Шток | E201: АМОП.50.А1.452995.356-070 | F201: =F199 -> 24640 | G201: 3.513 | H201: FC-TF(шток) | I201: Время сверено с ТП
B202: Амортизатор | C202: АМОП.50.А2.452995.044 | F202: 2490
D203: Корпус | E203: АМОП.50.А2.452995.312-044 | F203: =F202 -> 2490 | G203: 2.02 | H203: FC-TF(корп)
D204: Шток | E204: АМОП.50.А2.452995.482-044 | F204: =F202 -> 2490 | G204: 4.35 | H204: FC-TF(шток)
B205: Амортизатор | C205: АМОП.50.А3.452995.060 | F205: 20 | I205: нет инф.
B207: Амортизатор | C207: АМОП.50.А3.452995.080 | F207: 50
D208: Корпус | E208: 22.2905312-05
... 196 more rows
